[Event "*** Titled Tuesday 3|2 Blitz"]
[Site "Chess.com"]
[Date "2015.05.05"]
[Round "5"]
[White "AlmirDzhumaev"]
[Black "eltenedor"]
[Result "1-0"]
[WhiteElo "2079"]
[BlackElo "1946"]
[TimeControl "180+2"]
[EndTime "12:05:12 PDT"]
[Termination "AlmirDzhumaev won on time"]

1. e4 {[%clk 0:03:01.9]} 1... c5 {[%clk 0:02:50.6]} 2. Nc3 {[%clk 0:03:02]} 2...
Nc6 {[%clk 0:02:50.5]} 3. g3 {[%clk 0:03:02.8]} 3... g6 {[%clk 0:02:50.8]} 4.
Bg2 {[%clk 0:03:04]} 4... Bg7 {[%clk 0:02:51.8]} 5. d3 {[%clk 0:03:05]} 5... e6
{[%clk 0:02:51.8]} 6. Be3 {[%clk 0:03:06.1]} 6... Nd4 {[%clk 0:02:52]} 7. Qd2
{[%clk 0:03:07.1]} 7... Ne7 {[%clk 0:02:49.1]} 8. Nd1 {[%clk 0:03:08.3]} 8... d6
{[%clk 0:02:40.8]} 9. c3 {[%clk 0:03:09.5]} 9... Ndc6 {[%clk 0:02:41]} 10. Bh6
{[%clk 0:03:10.7]} 10... O-O {[%clk 0:02:34.5]} 11. h4 {[%clk 0:03:11.7]} 11...
d5 {[%clk 0:02:22.3]} 12. h5 {[%clk 0:03:12.4]} 12... dxe4 {[%clk 0:02:21.7]}
13. Bxg7 {[%clk 0:03:13.5]} 13... Kxg7 {[%clk 0:02:16.9]} 14. hxg6 {[%clk
0:03:11.1]} 14... Nxg6 {[%clk 0:02:09.7]} 15. Bxe4 {[%clk 0:02:55.7]} 15... f5
{[%clk 0:01:50]} 16. Qh6+ {[%clk 0:02:42.1]} 16... Kf6 {[%clk 0:01:49.8]} 17.
Bxc6 {[%clk 0:02:31.2]} 17... bxc6 {[%clk 0:01:49.7]} 18. Nf3 {[%clk 0:02:24.5]}
18... Qxd3 {[%clk 0:01:31.7]} 19. Ne3 {[%clk 0:02:21.7]} 19... Qe4 {[%clk
0:01:18.2]} 20. Ng5 {[%clk 0:02:14.9]} 20... Qxh1+ {[%clk 0:01:02.1]} 21. Qxh1
{[%clk 0:02:12.7]} 21... Kxg5 {[%clk 0:01:02]} 22. O-O-O {[%clk 0:01:51.6]}
22... Rb8 {[%clk 0:00:34.9]} 23. Qxh7 {[%clk 0:01:36.6]} 23... Rb7 {[%clk
0:00:21.9]} 24. Qh1 {[%clk 0:01:37.5]} 24... Rc7 {[%clk 0:00:16.1]} 25. Nc4
{[%clk 0:01:26.5]} 25... Bd7 {[%clk 0:00:13.1]} 26. Qe1 {[%clk 0:01:19.4]} 26...
Kf6 {[%clk 0:00:11.3]} 27. Qe3 {[%clk 0:01:17.2]} 27... Rh8 {[%clk 0:00:08.5]}
28. Qxc5 {[%clk 0:01:12.9]} 28... Be8 {[%clk 0:00:07.9]} 29. Nd6 {[%clk
0:01:08]} 29... Bd7 {[%clk 0:00:03.8]} 30. Qa5 {[%clk 0:01:07.6]} 1-0

[Event "*** Titled Tuesday 3|2 Blitz"]
[Site "Chess.com"]
[Date "2015.05.05"]
[Round "5"]
[White "wonderfultime"]
[Black "lukas_111111"]
[Result "1-0"]
[WhiteElo "2571"]
[BlackElo "2338"]
[TimeControl "180+2"]
[EndTime "12:05:24 PDT"]
[Termination "wonderfultime won by checkmate"]

1. d4 {[%clk 0:03:01.9]} 1... Nf6 {[%clk 0:02:58.1]} 2. c4 {[%clk 0:03:02.8]}
2... g6 {[%clk 0:02:57.5]} 3. Nc3 {[%clk 0:03:04.1]} 3... d5 {[%clk 0:02:57.6]}
4. e3 {[%clk 0:03:04.6]} 4... Bg7 {[%clk 0:02:58.1]} 5. Nf3 {[%clk 0:03:05.8]}
5... O-O {[%clk 0:02:59.1]} 6. Be2 {[%clk 0:03:07]} 6... c5 {[%clk 0:02:58.2]}
7. dxc5 {[%clk 0:03:07.9]} 7... dxc4 {[%clk 0:02:57.1]} 8. O-O {[%clk
0:03:08.3]} 8... Qa5 {[%clk 0:02:57]} 9. Qd4 {[%clk 0:03:03.4]} 9... Nc6 {[%clk
0:02:49.3]} 10. Qxc4 {[%clk 0:03:02.5]} 10... Be6 {[%clk 0:02:50]} 11. Qb5
{[%clk 0:02:58.8]} 11... Qxb5 {[%clk 0:02:46.3]} 12. Nxb5 {[%clk 0:02:51]} 12...
Rac8 {[%clk 0:02:46.9]} 13. Nfd4 {[%clk 0:02:45.6]} 13... Bd5 {[%clk 0:02:38.2]}
14. Rd1 {[%clk 0:02:27]} 14... a6 {[%clk 0:02:35.3]} 15. Nc3 {[%clk 0:02:28.2]}
15... e5 {[%clk 0:02:21.2]} 16. Nxd5 {[%clk 0:02:26.7]} 16... exd4 {[%clk
0:02:15.4]} 17. Nb6 {[%clk 0:02:27.6]} 17... Rce8 {[%clk 0:02:13.3]} 18. Bf3
{[%clk 0:02:24.9]} 18... Ne4 {[%clk 0:01:49.4]} 19. Nd7 {[%clk 0:02:23.7]} 19...
dxe3 {[%clk 0:01:28.4]} 20. fxe3 {[%clk 0:02:20.1]} 20... Ng5 {[%clk 0:01:20.2]}
21. Nxf8 {[%clk 0:02:20.8]} 21... Nxf3+ {[%clk 0:01:20.8]} 22. gxf3 {[%clk
0:02:21.6]} 22... Bxf8 {[%clk 0:01:22.7]} 23. a3 {[%clk 0:02:00.8]} 23... Bxc5
{[%clk 0:01:22.8]} 24. Kf2 {[%clk 0:02:01.7]} 24... f5 {[%clk 0:01:01.7]} 25. b4
{[%clk 0:02:01.7]} 25... Ba7 {[%clk 0:01:01.2]} 26. f4 {[%clk 0:02:01.4]} 26...
g5 {[%clk 0:00:50.1]} 27. Kf3 {[%clk 0:01:55.7]} 27... gxf4 {[%clk 0:00:45.4]}
28. Kxf4 {[%clk 0:01:57.6]} 28... Kf7 {[%clk 0:00:28.3]} 29. Kxf5 {[%clk
0:01:50.2]} 29... Bb8 {[%clk 0:00:24.4]} 30. Rd7+ {[%clk 0:01:50.2]} 30... Ne7+
{[%clk 0:00:24.3]} 31. Kg4 {[%clk 0:01:49.1]} 31... Ke6 {[%clk 0:00:22.1]} 32.
Rxb7 {[%clk 0:01:50.3]} 32... Be5 {[%clk 0:00:22.4]} 33. Ra2 {[%clk 0:01:47.9]}
33... Rc8 {[%clk 0:00:15.3]} 34. Bd2 {[%clk 0:01:49.2]} 34... Rg8+ {[%clk
0:00:14.7]} 35. Kf3 {[%clk 0:01:50]} 35... Nf5 {[%clk 0:00:14.7]} 36. b5 {[%clk
0:01:45.8]} 36... Nh4+ {[%clk 0:00:14.9]} 37. Ke4 {[%clk 0:01:46.7]} 37... Rg4+
{[%clk 0:00:15.1]} 38. Kd3 {[%clk 0:01:47.8]} 38... axb5 {[%clk 0:00:16.3]} 39.
Rb6+ {[%clk 0:01:48.8]} 39... Kf5 {[%clk 0:00:14.2]} 40. Rxb5 {[%clk 0:01:49.8]}
40... Nf3 {[%clk 0:00:13.5]} 41. Bc3 {[%clk 0:01:49.5]} 41... Rg8 {[%clk
0:00:09.1]} 42. Rf2 {[%clk 0:01:49.1]} 42... Rd8+ {[%clk 0:00:09.2]} 43. Ke2
{[%clk 0:01:49]} 43... Ke4 {[%clk 0:00:07.3]} 44. Rxf3 {[%clk 0:01:48.9]} 44...
Bxc3 {[%clk 0:00:07.5]} 45. Rf4# {[%clk 0:01:50.3]} 1-0

[Event "*** Titled Tuesday 3|2 Blitz"]
[Site "Chess.com"]
[Date "2015.05.05"]
[Round "5"]
[White "Malev212"]
[Black "vinceyoung15"]
[Result "1-0"]
[WhiteElo "2195"]
[BlackElo "2115"]
[TimeControl "180+2"]
[EndTime "12:05:28 PDT"]
[Termination "Malev212 won by resignation"]

1. d4 {[%clk 0:02:50.5]} 1... d5 {[%clk 0:02:56.7]} 2. c4 {[%clk 0:02:50.5]}
2... e6 {[%clk 0:02:57.5]} 3. Nf3 {[%clk 0:02:50.2]} 3... Be7 {[%clk 0:02:58]}
4. g3 {[%clk 0:02:50.3]} 4... Nf6 {[%clk 0:02:58.1]} 5. Bg2 {[%clk 0:02:51.3]}
5... O-O {[%clk 0:02:58.9]} 6. O-O {[%clk 0:02:52.2]} 6... c6 {[%clk 0:03:00.4]}
7. Nc3 {[%clk 0:02:51.3]} 7... Nbd7 {[%clk 0:02:58.6]} 8. b3 {[%clk 0:02:49.4]}
8... b6 {[%clk 0:02:59.1]} 9. Bb2 {[%clk 0:02:46.3]} 9... Bb7 {[%clk 0:02:59.8]}
10. Nd2 {[%clk 0:02:45.2]} 10... Rc8 {[%clk 0:02:57.7]} 11. e4 {[%clk
0:02:45.7]} 11... Bb4 {[%clk 0:02:53]} 12. e5 {[%clk 0:02:42.2]} 12... Ne8
{[%clk 0:02:53.3]} 13. Ne2 {[%clk 0:02:35.4]} 13... c5 {[%clk 0:02:49]} 14. a3
{[%clk 0:02:29.1]} 14... Ba5 {[%clk 0:02:45.9]} 15. Nf4 {[%clk 0:02:15.9]} 15...
cxd4 {[%clk 0:02:30.6]} 16. Bxd4 {[%clk 0:01:56.5]} 16... Bxd2 {[%clk
0:02:28.8]} 17. Qxd2 {[%clk 0:01:57.4]} 17... Nc5 {[%clk 0:02:30]} 18. Bxc5
{[%clk 0:01:47.8]} 18... Rxc5 {[%clk 0:02:30.7]} 19. cxd5 {[%clk 0:01:45.9]}
19... Bxd5 {[%clk 0:02:24.9]} 20. b4 {[%clk 0:01:33.4]} 20... Rc7 {[%clk
0:02:19.6]} 21. Bxd5 {[%clk 0:01:19.5]} 21... exd5 {[%clk 0:02:20]} 22. Rad1
{[%clk 0:01:10.6]} 22... d4 {[%clk 0:02:03.1]} 23. Qxd4 {[%clk 0:01:09.1]} 23...
Qxd4 {[%clk 0:02:04.1]} 24. Rxd4 {[%clk 0:01:09.1]} 24... Rc3 {[%clk 0:02:05.1]}
25. a4 {[%clk 0:01:08]} 25... Ra3 {[%clk 0:02:04.6]} 26. b5 {[%clk 0:01:07.7]}
26... Nc7 {[%clk 0:02:04.2]} 27. Rc1 {[%clk 0:00:52.2]} 27... Ne8 {[%clk
0:01:49.7]} 28. h4 {[%clk 0:00:49.6]} 28... h6 {[%clk 0:01:42.2]} 29. Rc8 {[%clk
0:00:49.6]} 29... g5 {[%clk 0:01:34.4]} 30. Nd5 {[%clk 0:00:43.9]} 30... Kg7
{[%clk 0:01:26.4]} 31. Ne7 {[%clk 0:00:37.9]} 31... f5 {[%clk 0:01:18.8]} 32.
Rd7 {[%clk 0:00:33.8]} 32... gxh4 {[%clk 0:01:08.5]} 33. Nxf5+ {[%clk
0:00:32.9]} 33... Kg6 {[%clk 0:01:09.8]} 34. Nxh4+ {[%clk 0:00:32.9]} 34... Kg5
{[%clk 0:01:08.3]} 35. Re7 {[%clk 0:00:28]} 35... Ra1+ {[%clk 0:01:04.9]} 36.
Kg2 {[%clk 0:00:26.5]} 36... Ra2 {[%clk 0:01:05.5]} 37. Nf3+ {[%clk 0:00:25.8]}
37... Kg4 {[%clk 0:01:06.6]} 38. Rexe8 {[%clk 0:00:23.5]} 1-0

[Event "*** Titled Tuesday 3|2 Blitz"]
[Site "Chess.com"]
[Date "2015.05.05"]
[Round "5"]
[White "GregShahade"]
[Black "iFrancisco"]
[Result "1-0"]
[WhiteElo "2445"]
[BlackElo "2287"]
[TimeControl "180+2"]
[EndTime "12:05:50 PDT"]
[Termination "GregShahade won by resignation"]

1. e4 {[%clk 0:03:01.9]} 1... e5 {[%clk 0:02:59.8]} 2. Nf3 {[%clk 0:03:02.9]}
2... Nc6 {[%clk 0:03:01.1]} 3. Bb5 {[%clk 0:03:03.1]} 3... a6 {[%clk 0:03:02.5]}
4. Ba4 {[%clk 0:03:04.2]} 4... Nf6 {[%clk 0:03:03.8]} 5. O-O {[%clk 0:03:04.9]}
5... Nxe4 {[%clk 0:03:03.7]} 6. d4 {[%clk 0:03:04.7]} 6... b5 {[%clk 0:03:04.6]}
7. Bb3 {[%clk 0:03:04.9]} 7... d5 {[%clk 0:03:06]} 8. dxe5 {[%clk 0:03:06]} 8...
Be6 {[%clk 0:03:07.2]} 9. Nbd2 {[%clk 0:03:07.1]} 9... Nc5 {[%clk 0:03:06.4]}
10. c3 {[%clk 0:03:06.9]} 10... Be7 {[%clk 0:03:07.8]} 11. Bc2 {[%clk
0:03:06.1]} 11... Bg4 {[%clk 0:03:08.7]} 12. h3 {[%clk 0:03:03.3]} 12... Bh5
{[%clk 0:03:09.2]} 13. Re1 {[%clk 0:03:03.5]} 13... Qd7 {[%clk 0:02:56.8]} 14.
Nf1 {[%clk 0:03:02]} 14... Rd8 {[%clk 0:02:53.9]} 15. Ng3 {[%clk 0:03:02.9]}
15... Bg6 {[%clk 0:02:52.8]} 16. Be3 {[%clk 0:02:51.8]} 16... Ne6 {[%clk
0:02:30.6]} 17. a4 {[%clk 0:02:42.6]} 17... O-O {[%clk 0:02:16.8]} 18. Nf5
{[%clk 0:02:38]} 18... Bxf5 {[%clk 0:01:48.5]} 19. Bxf5 {[%clk 0:02:37.8]} 19...
g6 {[%clk 0:01:50]} 20. Bd3 {[%clk 0:02:32.8]} 20... d4 {[%clk 0:01:40.1]} 21.
cxd4 {[%clk 0:02:21.8]} 21... Ncxd4 {[%clk 0:01:40.6]} 22. Nxd4 {[%clk
0:02:22.2]} 22... Nxd4 {[%clk 0:01:41.8]} 23. axb5 {[%clk 0:02:19.2]} 23... axb5
{[%clk 0:01:42.5]} 24. Be4 {[%clk 0:01:37.3]} 24... c5 {[%clk 0:01:37.4]} 25.
Bh6 {[%clk 0:01:31.1]} 25... Rfe8 {[%clk 0:01:37.2]} 26. Qd3 {[%clk 0:01:26.6]}
26... c4 {[%clk 0:01:33.3]} 27. Qg3 {[%clk 0:01:25]} 27... Nf5 {[%clk
0:01:18.3]} 28. Bxf5 {[%clk 0:01:17.8]} 28... Qxf5 {[%clk 0:01:20.2]} 29. e6
{[%clk 0:01:08]} 29... Bc5 {[%clk 0:01:05.6]} 30. Re5 {[%clk 0:00:50.5]} 30...
Qf6 {[%clk 0:00:05.8]} 31. exf7+ {[%clk 0:00:43.3]} 31... Qxf7 {[%clk
0:00:07.1]} 32. Rxc5 {[%clk 0:00:43.8]} 32... Re2 {[%clk 0:00:08.1]} 33. Rc7
{[%clk 0:00:42.9]} 33... Qf6 {[%clk 0:00:06.2]} 34. Raa7 {[%clk 0:00:34.2]} 1-0

[Event "*** Titled Tuesday 3|2 Blitz"]
[Site "Chess.com"]
[Date "2015.05.05"]
[Round "5"]
[White "MrHenriksson"]
[Black "Tirantes"]
[Result "1/2-1/2"]
[WhiteElo "2014"]
[BlackElo "2104"]
[TimeControl "180+2"]
[EndTime "12:06:17 PDT"]
[Termination "Game drawn by repetition"]

1. d4 {[%clk 0:03:01.9]} 1... Nf6 {[%clk 0:02:59]} 2. Nf3 {[%clk 0:03:03.3]}
2... b6 {[%clk 0:02:57]} 3. g3 {[%clk 0:03:04.5]} 3... Bb7 {[%clk 0:02:57.4]} 4.
Bg2 {[%clk 0:03:05.9]} 4... e6 {[%clk 0:02:58.2]} 5. O-O {[%clk 0:03:07.3]} 5...
Be7 {[%clk 0:02:58.8]} 6. c4 {[%clk 0:03:08.1]} 6... O-O {[%clk 0:02:58.4]} 7.
Nc3 {[%clk 0:03:09.6]} 7... Na6 {[%clk 0:02:58]} 8. b3 {[%clk 0:03:10.1]} 8...
d5 {[%clk 0:02:55.8]} 9. Bb2 {[%clk 0:03:09.9]} 9... c5 {[%clk 0:02:52.4]} 10.
dxc5 {[%clk 0:03:05.7]} 10... bxc5 {[%clk 0:02:52.2]} 11. Ne5 {[%clk 0:03:04.8]}
11... Nc7 {[%clk 0:02:37.3]} 12. cxd5 {[%clk 0:02:58.5]} 12... exd5 {[%clk
0:02:36.6]} 13. Rc1 {[%clk 0:02:52.1]} 13... Rb8 {[%clk 0:02:30.3]} 14. Na4
{[%clk 0:02:52.1]} 14... Ne6 {[%clk 0:02:24.9]} 15. Nd3 {[%clk 0:02:46]} 15...
c4 {[%clk 0:01:55.1]} 16. bxc4 {[%clk 0:02:37.9]} 16... dxc4 {[%clk 0:01:54.9]}
17. Ne5 {[%clk 0:02:02.6]} 17... Bxg2 {[%clk 0:01:54.2]} 18. Kxg2 {[%clk
0:01:13.9]} 18... Rb4 {[%clk 0:01:36.3]} 19. Qxd8 {[%clk 0:00:47.3]} 19... Rxd8
{[%clk 0:01:35.4]} 20. Ba3 {[%clk 0:00:36.7]} 20... Rxa4 {[%clk 0:01:31.6]} 21.
Bxe7 {[%clk 0:00:37]} 21... Rd2 {[%clk 0:01:21.5]} 22. Nxc4 {[%clk 0:00:36.1]}
22... Rdxa2 {[%clk 0:00:30.4]} 23. Nb2 {[%clk 0:00:31.7]} 23... h6 {[%clk
0:00:29.5]} 24. Nxa4 {[%clk 0:00:31.6]} 24... Rxa4 {[%clk 0:00:29.5]} 25. Rc8+
{[%clk 0:00:27.4]} 25... Kh7 {[%clk 0:00:29.2]} 26. Bxf6 {[%clk 0:00:27.6]}
26... gxf6 {[%clk 0:00:29.2]} 27. Rd1 {[%clk 0:00:28.1]} 27... Ra2 {[%clk
0:00:25.9]} 28. e3 {[%clk 0:00:28]} 28... Ng5 {[%clk 0:00:25.3]} 29. Rd4 {[%clk
0:00:22.5]} 29... f5 {[%clk 0:00:24.1]} 30. Rf4 {[%clk 0:00:19.8]} 30... Ra5
{[%clk 0:00:18.1]} 31. Rc7 {[%clk 0:00:19.9]} 31... Kg6 {[%clk 0:00:16.6]} 32.
h4 {[%clk 0:00:18.9]} 32... Ne4 {[%clk 0:00:15.6]} 33. Rc6+ {[%clk 0:00:19.4]}
33... Kg7 {[%clk 0:00:11.2]} 34. f3 {[%clk 0:00:18.1]} 34... Ra2+ {[%clk
0:00:09.7]} 35. Kg1 {[%clk 0:00:16.9]} 35... Ra1+ {[%clk 0:00:10.1]} 36. Kg2
{[%clk 0:00:17.3]} 36... Ra2+ {[%clk 0:00:10.8]} 37. Kg1 {[%clk 0:00:18.6]}
37... Ra1+ {[%clk 0:00:11]} 38. Kg2 {[%clk 0:00:19.8]} 38... Ra2+ {[%clk
0:00:11]} 1/2-1/2

[Event "*** Titled Tuesday 3|2 Blitz"]
[Site "Chess.com"]
[Date "2015.05.05"]
[Round "5"]
[White "zmaj23"]
[Black "9ShMat2"]
[Result "0-1"]
[WhiteElo "2438"]
[BlackElo "2433"]
[TimeControl "180+2"]
[EndTime "12:06:33 PDT"]
[Termination "9ShMat2 won by resignation"]

1. e4 {[%clk 0:03:01.9]} 1... c5 {[%clk 0:02:58.3]} 2. Nf3 {[%clk 0:03:02.5]}
2... e6 {[%clk 0:02:59.5]} 3. d4 {[%clk 0:03:03.7]} 3... cxd4 {[%clk 0:03:01.4]}
4. Nxd4 {[%clk 0:03:03.3]} 4... Bc5 {[%clk 0:03:02.5]} 5. Be3 {[%clk 0:03:02.7]}
5... Qb6 {[%clk 0:03:03.2]} 6. Nc3 {[%clk 0:02:54.6]} 6... Nc6 {[%clk
0:03:03.2]} 7. Na4 {[%clk 0:02:45.4]} 7... Qa5+ {[%clk 0:03:03.9]} 8. c3 {[%clk
0:02:47]} 8... Bxd4 {[%clk 0:03:04.3]} 9. Bxd4 {[%clk 0:02:46.3]} 9... Nxd4
{[%clk 0:03:06.2]} 10. Qxd4 {[%clk 0:02:47.3]} 10... e5 {[%clk 0:03:07.5]} 11.
Qd1 {[%clk 0:02:41.2]} 11... Nf6 {[%clk 0:03:05.3]} 12. f3 {[%clk 0:02:39.6]}
12... O-O {[%clk 0:03:02.9]} 13. b4 {[%clk 0:02:32.1]} 13... Qc7 {[%clk
0:03:03.4]} 14. c4 {[%clk 0:02:33.1]} 14... d6 {[%clk 0:02:59.1]} 15. Be2 {[%clk
0:02:33.4]} 15... Bd7 {[%clk 0:02:55.3]} 16. O-O {[%clk 0:02:30.9]} 16... Rac8
{[%clk 0:02:49.1]} 17. Rc1 {[%clk 0:02:28.3]} 17... Rfd8 {[%clk 0:02:46.2]} 18.
Kh1 {[%clk 0:02:25]} 18... h6 {[%clk 0:02:39]} 19. c5 {[%clk 0:02:22.4]} 19...
d5 {[%clk 0:02:22.3]} 20. exd5 {[%clk 0:02:18.1]} 20... Nxd5 {[%clk 0:02:24.2]}
21. Qxd5 {[%clk 0:02:14.4]} 21... Bxa4 {[%clk 0:02:24.9]} 22. Qc4 {[%clk
0:02:15.3]} 22... a6 {[%clk 0:02:09]} 23. Qc3 {[%clk 0:02:10.1]} 23... Rd4
{[%clk 0:02:05.9]} 24. Bd1 {[%clk 0:01:58.4]} 24... Qc6 {[%clk 0:01:57.8]} 25.
a3 {[%clk 0:01:49.9]} 25... Rcd8 {[%clk 0:01:55.5]} 26. Bxa4 {[%clk 0:01:50.1]}
26... Qxa4 {[%clk 0:01:55.9]} 27. Rfe1 {[%clk 0:01:43.8]} 27... e4 {[%clk
0:01:33.7]} 28. fxe4 {[%clk 0:01:36.5]} 28... Rd3 {[%clk 0:01:34.3]} 29. Qe5
{[%clk 0:01:34]} 29... Qxa3 {[%clk 0:01:31.8]} 30. Rb1 {[%clk 0:01:31.3]} 30...
Qa2 {[%clk 0:01:32.5]} 31. h3 {[%clk 0:01:26.1]} 31... Rd2 {[%clk 0:01:33.1]}
32. Qg3 {[%clk 0:01:25]} 32... R8d3 {[%clk 0:01:26.9]} 33. Qg4 {[%clk
0:01:21.1]} 33... h5 {[%clk 0:01:19.4]} 34. Qc8+ {[%clk 0:01:18.1]} 34... Rd8
{[%clk 0:01:20.4]} 35. Qc7 {[%clk 0:01:16.5]} 35... Qe6 {[%clk 0:01:11.7]} 36.
Qxb7 {[%clk 0:01:13.6]} 36... Rxg2 {[%clk 0:00:43]} 37. Kxg2 {[%clk 0:01:15.5]}
37... Rd2+ {[%clk 0:00:42.9]} 38. Re2 {[%clk 0:01:02.2]} 38... Rxe2+ {[%clk
0:00:43.1]} 39. Kf3 {[%clk 0:01:03.8]} 39... Rc2 {[%clk 0:00:27]} 40. Qb8+
{[%clk 0:00:58.6]} 40... Kh7 {[%clk 0:00:28.2]} 41. Qd6 {[%clk 0:00:29]} 41...
Qxh3+ {[%clk 0:00:27]} 42. Kf4 {[%clk 0:00:29.6]} 42... Qh2+ {[%clk 0:00:22.6]}
43. Kf5 {[%clk 0:00:23.1]} 43... Rf2+ {[%clk 0:00:23.7]} 0-1

[Event "*** Titled Tuesday 3|2 Blitz"]
[Site "Chess.com"]
[Date "2015.05.05"]
[Round "5"]
[White "Zvonokchess"]
[Black "Tomsel"]
[Result "1-0"]
[WhiteElo "2493"]
[BlackElo "2344"]
[TimeControl "180+2"]
[EndTime "12:08:07 PDT"]
[Termination "Zvonokchess won by checkmate"]

1. e4 {[%clk 0:03:01.9]} 1... c5 {[%clk 0:02:58.4]} 2. d4 {[%clk 0:03:02.5]}
2... cxd4 {[%clk 0:02:53.8]} 3. c3 {[%clk 0:03:04.4]} 3... d5 {[%clk 0:02:54.4]}
4. exd5 {[%clk 0:03:04.8]} 4... Qxd5 {[%clk 0:02:50]} 5. cxd4 {[%clk 0:03:05.8]}
5... Nc6 {[%clk 0:02:45]} 6. Nf3 {[%clk 0:03:06.6]} 6... Bg4 {[%clk 0:02:41]} 7.
Nc3 {[%clk 0:03:07.6]} 7... Bxf3 {[%clk 0:02:37.4]} 8. gxf3 {[%clk 0:03:09.5]}
8... Qxd4 {[%clk 0:02:36.6]} 9. Qxd4 {[%clk 0:03:11.1]} 9... Nxd4 {[%clk
0:02:37.9]} 10. Nb5 {[%clk 0:03:13]} 10... Nc2+ {[%clk 0:02:34.8]} 11. Kd1
{[%clk 0:03:13.9]} 11... Nxa1 {[%clk 0:02:36.5]} 12. Nc7+ {[%clk 0:03:14.2]}
12... Kd8 {[%clk 0:02:38]} 13. Nxa8 {[%clk 0:03:15.2]} 13... e5 {[%clk 0:02:37]}
14. Be3 {[%clk 0:02:28.2]} 14... b6 {[%clk 0:02:31.9]} 15. Nxb6 {[%clk
0:02:29.1]} 15... axb6 {[%clk 0:02:32.8]} 16. Bxb6+ {[%clk 0:02:30.6]} 16... Kd7
{[%clk 0:02:30.6]} 17. Bb5+ {[%clk 0:02:29.8]} 17... Ke6 {[%clk 0:02:22.1]} 18.
Kd2 {[%clk 0:02:24.7]} 18... Bb4+ {[%clk 0:02:22]} 19. Kd3 {[%clk 0:02:25.9]}
19... Nf6 {[%clk 0:02:18.4]} 20. Rxa1 {[%clk 0:02:25.4]} 20... Rb8 {[%clk
0:02:09.6]} 21. Bc4+ {[%clk 0:02:26.1]} 21... Ke7 {[%clk 0:01:51.4]} 22. Be3
{[%clk 0:02:24.5]} 22... Bd6 {[%clk 0:01:36.8]} 23. b3 {[%clk 0:02:21.3]} 23...
Nd7 {[%clk 0:01:36.8]} 24. Ke2 {[%clk 0:02:05.6]} 24... f5 {[%clk 0:01:37.1]}
25. Rd1 {[%clk 0:02:01.8]} 25... f4 {[%clk 0:01:30.2]} 26. Bc1 {[%clk
0:01:53.4]} 26... Nb6 {[%clk 0:01:13.2]} 27. Bb5 {[%clk 0:01:44]} 27... Rc8
{[%clk 0:00:53.1]} 28. Bb2 {[%clk 0:01:43.8]} 28... Rc5 {[%clk 0:00:44.3]} 29.
Bd3 {[%clk 0:01:27.5]} 29... Nd5 {[%clk 0:00:41]} 30. Bxh7 {[%clk 0:01:27.7]}
30... Nc3+ {[%clk 0:00:37.2]} 31. Bxc3 {[%clk 0:01:28.9]} 31... Rxc3 {[%clk
0:00:39.1]} 32. Be4 {[%clk 0:01:30.2]} 32... Bc5 {[%clk 0:00:35.3]} 33. Rg1
{[%clk 0:01:06.3]} 33... Kf7 {[%clk 0:00:31.4]} 34. Bd5+ {[%clk 0:01:05.1]}
34... Kf6 {[%clk 0:00:30.8]} 35. Be4 {[%clk 0:01:06]} 35... Bd4 {[%clk
0:00:27.4]} 36. Rb1 {[%clk 0:00:45.9]} 36... Rc8 {[%clk 0:00:16]} 37. a4 {[%clk
0:00:39.9]} 37... Rh8 {[%clk 0:00:16.2]} 38. Rh1 {[%clk 0:00:18]} 38... Rb8
{[%clk 0:00:17]} 39. Bd5 {[%clk 0:00:19]} 39... Rc8 {[%clk 0:00:17.9]} 40. Bc4
{[%clk 0:00:20.2]} 40... Ra8 {[%clk 0:00:11.2]} 41. Kf1 {[%clk 0:00:20.8]} 41...
Kf5 {[%clk 0:00:11.8]} 42. Kg2 {[%clk 0:00:21.9]} 42... Bc3 {[%clk 0:00:07.6]}
43. Rd1 {[%clk 0:00:21.5]} 43... Rb8 {[%clk 0:00:08.6]} 44. Rd6 {[%clk
0:00:21.8]} 44... Bb4 {[%clk 0:00:06.9]} 45. Bd3+ {[%clk 0:00:22.2]} 45... Kg5
{[%clk 0:00:08.2]} 46. Rg6+ {[%clk 0:00:23.1]} 46... Kh5 {[%clk 0:00:09.7]} 47.
Rxg7 {[%clk 0:00:22.8]} 47... Bc3 {[%clk 0:00:10.9]} 48. Rh7+ {[%clk 0:00:15.9]}
48... Kg5 {[%clk 0:00:11.6]} 49. Bc4 {[%clk 0:00:17.4]} 49... Rd8 {[%clk
0:00:11.5]} 50. h4+ {[%clk 0:00:18]} 50... Kg6 {[%clk 0:00:11.4]} 51. Re7 {[%clk
0:00:17.9]} 51... Rd2 {[%clk 0:00:11.9]} 52. Re6+ {[%clk 0:00:18.9]} 52... Kh5
{[%clk 0:00:12.8]} 53. Kh3 {[%clk 0:00:13]} 53... Rxf2 {[%clk 0:00:08.3]} 54.
Bd5 {[%clk 0:00:14.3]} 54... Rd2 {[%clk 0:00:05.4]} 55. Rd6 {[%clk 0:00:11.2]}
55... Bd4 {[%clk 0:00:03.8]} 56. Bf7# {[%clk 0:00:12]} 1-0